fUST/lending_fUST_20251230
["ID","MTS","AMOUNT","RATE_DAILY","PERIOD"]
[400048914,1767052250266,-300.0,0.00027397,2]
[400048915,1767052250275,-300.0,0.00027397,2]
[400048916,1767052250284,-300.0,0.00027397,2]
[400048917,1767052250293,-300.0,0.00027397,2]
[400048918,1767052250302,-300.0,0.00027397,2]
[400048919,1767052250312,-151.0,0.00027397,7]
[400048920,1767052250321,-151.0,0.00027397,7]
[400048921,1767052250330,-403.601255,0.00027397,7]
[400048922,1767052250340,-403.601255,0.00027397,7]
[400048923,1767052250349,-403.601255,0.00027397,7]
[400048924,1767052250359,-403.601255,0.00027397,7]
[400048925,1767052250367,-500.0,0.00027397,5]
[400048926,1767052250377,-157.04098773,0.00027397,5]
[400048927,1767052250386,-1802.09,0.000275,14]
[400048928,1767052250396,-321.5,0.00027505,2]
[400048929,1767052250405,-1185.0,0.00027538,2]
[400048930,1767052250415,-12494.59,0.000276,2]
[400048931,1767052250424,-1183.0,0.00027605,2]
[400048932,1767052250434,-1354.10611933,0.00027671,2]
[400048933,1767052250444,-502.9,0.00027671,2]
[400048934,1767052250454,-161.045,0.00027671,17]
[400048935,1767052250465,-893.04,0.00027671,2]
[400048936,1767052250475,-4821.6,0.00027671,2]
[400048937,1767052250485,-501.1,0.00027671,2]
[400048938,1767052250495,-680.8,0.00027671,2]
[400048939,1767052250505,-878.29,0.00027671,2]
[400048940,1767052250515,-994.31,0.00027671,2]
[400048941,1767052250524,-462.88,0.00027671,2]
[400048942,1767052250534,-5000.0,0.00027687,15]
[400048943,1767052250544,-5000.0,0.00027699,14]
[400048944,1767052250554,-1207.08,0.000277,7]
[400048945,1767052250564,-5000.0,0.00027761,2]
[400048946,1767052250574,-1364.0,0.0002779,2]
[400048947,1767052250583,-627.0,0.0002779,2]
[400048948,1767052250592,-2168.0,0.0002779,2]
[400048949,1767052250602,-219.855,0.0002779,2]
[400048950,1767052250611,-240.205,0.0002779,2]
[400048951,1767052250621,-250.0,0.0002779,2]
[400048952,1767052250630,-2600.3767643,0.00027795,2]
[400048953,1767052250640,-2000.0,0.00027884,7]
[400048954,1767052250649,-5000.0,0.00027889,15]
[400048955,1767052250658,-2000.0,0.00027893,7]
[400048956,1767052250667,-2000.0,0.00027902,7]
[400048957,1767052250677,-2000.0,0.00027911,7]
[400048958,1767052250686,-2000.0,0.00027919,7]
[400048959,1767052250696,-382.63332871,0.00027923,7]
[400048960,1767052250705,-1354.10611933,0.00027945,2]
[400048961,1767052250715,-502.9,0.00027945,2]
[400048962,1767052250725,-893.04,0.00027945,2]
[400048963,1767052250734,-4821.6,0.00027945,2]
[400048964,1767052250744,-501.1,0.00027945,2]
[400048965,1767052250754,-680.8,0.00027945,2]
[400048966,1767052250770,-878.29,0.00027945,2]
[400048967,1767052250780,-994.31,0.00027945,2]
[400048968,1767052250789,-750.0,0.00027945,5]
[400048969,1767052250798,-1000.0,0.00027945,5]
[400048970,1767052250809,-250.0,0.00027945,5]
[400048971,1767052250818,-250.0,0.00027945,5]
[400048972,1767052250827,-250.0,0.00028,10]
[400048973,1767052250837,-1017.0,0.00028,2]
[400048974,1767052250847,-2011.91929744,0.0002805,2]
[400048975,1767052250856,-197.53,0.000281,2]
[400048976,1767052250865,-301.398599,0.000281,10]
[400048977,1767052250875,-1354.33260796,0.00028219,2]
[400048978,1767052250885,-502.91652745,0.00028219,2]
[400048979,1767052250895,-893.06635343,0.00028219,2]
[400048980,1767052250905,-4821.82605104,0.00028219,2]
[400048981,1767052250915,-501.21245629,0.00028219,2]
[400048982,1767052250924,-680.91387103,0.00028219,2]
[400048983,1767052250934,-878.42472606,0.00028219,2]
[400048984,1767052250943,-994.35737078,0.00028219,2]
[400048985,1767052250953,-2000.0,0.00028333,7]
[400048986,1767052250962,-2011.91929744,0.00028418,2]
[400048987,1767052250971,-11886.2727972,0.00028476,2]
[400048988,1767052250981,-850.0,0.00028493,5]
[400048989,1767052250990,-1340.79710495,0.00028493,5]
[400048990,1767052250999,-350.0,0.00028493,5]
[400048991,1767052251008,-350.0,0.00028493,5]
[400048992,1767052251018,-31327.50318541,0.000285,7]
[400048993,1767052251027,-1183.0,0.00028526,2]
[400048994,1767052251037,-4300.10691997,0.00028526,2]
[400048995,1767052251046,-5000.0,0.00028532,5]
[400048996,1767052251056,-1183.0,0.00028565,7]
[400048997,1767052251065,-398.0,0.00028582,10]
[400048998,1767052251075,-5761.0,0.00028582,10]
[400048999,1767052251085,-5000.0,0.00028599,4]
[400049000,1767052251179,-2477.790854,0.000286,4]
[400049001,1767052251189,-321.5,0.00028604,3]
[400049002,1767052251198,-154.49216668,0.00028623,5]
[400049003,1767052251208,-156.78044487,0.00028623,5]
[400049004,1767052251218,-150.02763225,0.0002869,2]
[400049005,1767052251227,-600.11052899,0.0002869,2]
[400049006,1767052251236,-1350.24869023,0.0002869,2]
[400049007,1767052251245,-2400.44211597,0.0002869,2]
[400049008,1767052251254,-3750.6908062,0.0002869,2]
[400049009,1767052251263,-5400.99476093,0.0002869,2]
[400049010,1767052251272,-5000.0,0.00028699,15]
[400049011,1767052251283,-23707.42,0.000287,3]
[400049012,1767052251292,-5000.0,0.00028759,2]
[400049013,1767052251302,-1000.0,0.0002876,2]
[400049014,1767052251311,-1000.0,0.0002876,2]
[400049015,1767052251321,-1000.0,0.0002876,2]
[400049016,1767052251330,-1000.0,0.0002876,2]
[400049017,1767052251340,-727.1241338,0.0002876,2]
[400049018,1767052251350,-912.92938636,0.0002876,2]
[400049019,1767052251359,-500.0,0.00028767,7]
[400049020,1767052251368,-500.0,0.00028767,7]
[400049021,1767052251377,-500.0,0.00028767,7]
[400049022,1767052251386,-500.0,0.00028767,7]
[400049023,1767052251395,-500.0,0.00028767,7]
[400049024,1767052251405,-500.0,0.00028767,7]
[400049025,1767052251415,-500.0,0.00028767,7]
[400049026,1767052251424,-500.0,0.00028767,7]
[400049027,1767052251434,-500.0,0.00028767,7]
[400049028,1767052251443,-500.0,0.00028767,7]
[400049029,1767052251452,-500.0,0.00028767,7]
[400049030,1767052251463,-500.0,0.00028767,7]
[400049031,1767052251472,-500.0,0.00028767,7]
[400049032,1767052251482,-494.49773286,0.00028767,7]
[400049033,1767052251492,-241.032427,0.00028767,60]
[400049034,1767052251501,-5000.0,0.00028796,10]
[400049035,1767052251511,-5000.0,0.00028799,7]
[400049036,1767052251520,-5000.0,0.00028799,3]
[400049037,1767052251529,-151.0,0.00028799,3]
[400049038,1767052251539,-500.0,0.00028799,3]
[400049039,1767052251548,-151.0,0.00028799,3]
[400049040,1767052251558,-500.0,0.00028799,3]
[400049041,1767052251568,-2398.4119403,0.00028799,3]
[400049042,1767052251578,-183.83210402,0.00028799,3]
[400049043,1767052251588,-500.0,0.00028799,3]
[400049044,1767052251598,-2487.15318209,0.00028799,3]
[400049045,1767052251607,-500.0,0.00028799,3]
[400049046,1767052251617,-2579.17784983,0.00028799,3]
[400049047,1767052251626,-500.0,0.00028799,3]
[400049048,1767052251635,-2674.60743027,0.00028799,3]
[400049049,1767052251644,-500.0,0.00028799,3]
[400049050,1767052251654,-500.0,0.00028799,3]
[400049051,1767052251663,-500.0,0.00028799,3]
[400049052,1767052251672,-500.0,0.00028799,3]
[400049053,1767052251681,-500.0,0.00028799,3]
[400049054,1767052251690,-500.0,0.00028799,3]
[400049055,1767052251699,-500.0,0.00028799,3]
[400049056,1767052251709,-496.47127164,0.00028799,3]
[400049057,1767052251720,-500.0,0.00028799,3]
[400049058,1767052251729,-514.84070869,0.00028799,3]
[400049059,1767052251738,-500.0,0.00028799,3]
[400049060,1767052251747,-533.88981491,0.00028799,3]
[400049061,1767052251757,-553.64373807,0.00028799,3]
[400049062,1767052251766,-574.12855637,0.00028799,3]
[400049063,1767052251775,-500.0,0.00028799,3]
[400049064,1767052251784,-595.37131296,0.00028799,3]
[400049065,1767052251794,-500.0,0.00028799,3]
[400049066,1767052251803,-617.40005154,0.00028799,3]
[400049067,1767052251812,-640.24385345,0.00028799,3]
[400049068,1767052251821,-663.93287602,0.00028799,3]
[400049069,1767052251831,-643.34624238,0.00028799,3]
[400049070,1767052251840,-233974.76113186,0.000288,3]
[400049071,1767052251850,-172.31850849,0.000288,7]
[400049072,1767052251860,-151.0,0.000288,7]
[400049073,1767052251869,-152.0,0.000288,7]
[400049074,1767052251879,-152.0,0.000288,7]
[400049075,1767052251888,-346.0,0.000288,7]
[400049076,1767052251898,-152.0,0.000288,7]
[400049077,1767052251907,-326.17108693,0.000288,7]
[400049078,1767052251917,-152.0,0.000288,7]
[400049079,1767052251926,-155.0,0.000288,7]
[400049080,1767052251936,-152.0,0.000288,7]
[400049081,1767052251945,-155.0,0.000288,7]
[400049082,1767052251954,-152.0,0.000288,7]
[400049083,1767052251964,-155.0,0.000288,7]
[400049084,1767052251973,-152.0,0.000288,7]
[400049085,1767052251982,-155.0,0.000288,7]
[400049086,1767052251992,-152.0,0.000288,7]
[400049087,1767052252001,-155.0,0.000288,7]
[400049088,1767052252010,-152.0,0.000288,7]
[400049089,1767052252020,-171.63752996,0.000288,7]
[400049090,1767052252029,-152.0,0.000288,7]
[400049091,1767052252039,-152.0,0.000288,7]
[400049092,1767052252048,-152.0,0.000288,7]
[400049093,1767052252058,-152.0,0.000288,7]
[400049094,1767052252067,-152.0,0.000288,7]
[400049095,1767052252076,-152.0,0.000288,7]
[400049096,1767052252085,-151.0,0.000288,7]
[400049097,1767052252095,-152.0,0.000288,7]
[400049098,1767052252104,-151.0,0.000288,7]
[400049099,1767052252113,-152.0,0.000288,7]
[400049100,1767052252123,-152.0,0.000288,7]
[400049101,1767052252132,-264.0,0.000288,7]
[400049102,1767052252142,-151.0,0.000288,7]
[400049103,1767052252152,-151.0,0.000288,7]
[400049104,1767052252162,-151.0,0.000288,7]
[400049105,1767052252176,-151.0,0.000288,7]
[400049106,1767052252186,-227.262837,0.000288,7]
[400049107,1767052252195,-151.0,0.000288,7]
[400049108,1767052252205,-151.0,0.000288,7]
[400049109,1767052252215,-151.0,0.000288,7]
[400049110,1767052252224,-155.416884,0.000288,7]
[400049111,1767052252233,-151.0,0.000288,7]
[400049112,1767052252243,-253.301123,0.000288,7]
[400049113,1767052252252,-253.301123,0.000288,7]
[400049114,1767052252262,-151.0,0.000288,7]
[400049115,1767052252271,-253.301123,0.000288,7]
[400049116,1767052252280,-151.0,0.000288,7]
[400049117,1767052252290,-253.301123,0.000288,7]
[400049118,1767052252299,-151.0,0.000288,7]
[400049119,1767052252308,-151.0,0.000288,7]
[400049120,1767052252317,-151.0,0.000288,7]
[400049121,1767052252326,-185.798208,0.000288,7]
[400049122,1767052252335,-156.794228,0.000288,7]
[400049123,1767052252345,-151.0,0.000288,7]
[400049124,1767052252354,-151.0,0.000288,7]
[400049125,1767052252364,-151.0,0.000288,7]
[400049126,1767052252373,-151.0,0.000288,7]
[400049127,1767052252383,-151.0,0.000288,7]
[400049128,1767052252393,-151.0,0.000288,7]
[400049129,1767052252403,-151.0,0.000288,7]
[400049130,1767052252414,-151.0,0.000288,7]
[400049131,1767052252424,-204.630048,0.000288,7]
[400049132,1767052252433,-151.0,0.000288,7]
[400049133,1767052252443,-226.600285,0.000288,7]
[400049134,1767052252452,-151.0,0.000288,7]
[400049135,1767052252462,-151.0,0.000288,7]
[400049136,1767052252471,-151.0,0.000288,7]
[400049137,1767052252481,-249.44556,0.000288,7]
[400049138,1767052252490,-151.0,0.000288,7]
[400049139,1767052252500,-403.601255,0.000288,7]
[400049140,1767052252510,-403.601255,0.000288,7]
[400049141,1767052252519,-403.601255,0.000288,7]
[400049142,1767052252529,-403.601255,0.000288,7]
[400049143,1767052252538,-151.0,0.000288,7]
[400049144,1767052252548,-151.0,0.000288,7]
[400049145,1767052252558,-2966.412199,0.000288,7]
[400049146,1767052252567,-2966.412199,0.000288,7]
[400049147,1767052252577,-2966.412199,0.000288,7]
[400049148,1767052252586,-2966.412199,0.000288,7]
[400049149,1767052252596,-151.0,0.000288,7]
[400049150,1767052252606,-253.03,0.000288,2]
[400049151,1767052252615,-253.03,0.000288,2]
[400049152,1767052252625,-151.0,0.000288,7]
[400049153,1767052252634,-151.0,0.000288,7]
[400049154,1767052252644,-151.0,0.000288,7]
[400049155,1767052252653,-151.0,0.000288,7]
[400049156,1767052252663,-15277.58765547,0.00028833,2]
[400049157,1767052252673,-253.03,0.000289,2]
[400049158,1767052252682,-253.03,0.000289,2]
[400049159,1767052252692,-237.00042319,0.00028947,2]
[400049160,1767052252701,-236.29131603,0.00028947,2]
[400049161,1767052252787,-236.29060693,0.00028947,2]
[400049162,1767052252797,-1183.0,0.00028947,2]
[400049163,1767052252806,-946.10758729,0.00028948,2]
[400049164,1767052252815,-1184.0,0.00028983,2]
[400049165,1767052252825,-188.0,0.00028997,14]
[400049166,1767052252834,-304.43204,0.00029,120]
[400049167,1767052252844,-889.43525477,0.00029,2]
[400049168,1767052252854,-28339.10739475,0.00029,20]
[400049169,1767052252863,-2406.21476292,0.00029,10]
[400049170,1767052252872,-1041.66666667,0.00029,7]
[400049171,1767052252881,-1041.66666667,0.00029,3]
[400049172,1767052252890,-290.92683,0.00029,7]
[400049173,1767052252899,-153.304838,0.00029,7]
[400049174,1767052252908,-151.0,0.00029,7]
[400049175,1767052252917,-151.0,0.00029,7]
[400049176,1767052252926,-151.0,0.00029,7]
[400049177,1767052252936,-151.0,0.00029,7]
[400049178,1767052252945,-151.0,0.00029,7]
[400049179,1767052252954,-167.905055,0.00029,7]
[400049180,1767052252964,-151.0,0.00029,7]
[400049181,1767052252973,-151.0,0.00029,7]
[400049182,1767052252983,-151.0,0.00029,7]
[400049183,1767052252992,-151.0,0.00029,7]
[400049184,1767052253001,-151.0,0.00029,7]
[400049185,1767052253010,-983.498428,0.00029,7]
[400049186,1767052253019,-983.498428,0.00029,7]
[400049187,1767052253028,-983.498428,0.00029,7]
[400049188,1767052253037,-983.498428,0.00029,7]
[400049189,1767052253047,-151.0,0.00029,7]
[400049190,1767052253056,-151.0,0.00029,7]
[400049191,1767052253066,-151.0,0.00029,7]
[400049192,1767052253075,-151.0,0.00029,7]
[400049193,1767052253084,-209.378092,0.00029,7]
[400049194,1767052253094,-209.378092,0.00029,7]
[400049195,1767052253103,-209.378092,0.00029,7]
[400049196,1767052253112,-209.378092,0.00029,7]
[400049197,1767052253121,-1017.0,0.00029,2]
[400049198,1767052253130,-253.03,0.00029,2]
[400049199,1767052253140,-1183.0,0.00029018,2]
[400049200,1767052253148,-151.0,0.00029041,7]
[400049201,1767052253158,-156.233766,0.00029041,7]
[400049202,1767052253167,-151.0,0.00029041,7]
[400049203,1767052253176,-151.0,0.00029041,7]
[400049204,1767052253185,-950.0,0.00029041,5]
[400049205,1767052253195,-450.0,0.00029041,5]
[400049206,1767052253204,-450.0,0.00029041,5]
[400049207,1767052253214,-151.0,0.0002906,7]
[400049208,1767052253223,-151.0,0.0002906,7]
[400049209,1767052253232,-1802.09,0.000291,14]
[400049210,1767052253242,-1500.0,0.000291,4]
[400049211,1767052253251,-253.03,0.000291,2]
[400049212,1767052253260,-253.03,0.000291,2]
[400049213,1767052253270,-228.56342,0.000292,120]
[400049214,1767052253279,-1207.08,0.000292,7]
[400049215,1767052253288,-253.03,0.000292,2]
[400049216,1767052253297,-253.03,0.000292,2]
[400049217,1767052253306,-366.0,0.00029299,2]
[400049218,1767052253315,-253.03,0.000293,2]
[400049219,1767052253324,-1184.0,0.00029352,2]
[400049220,1767052253334,-1184.0,0.00029359,7]
[400049221,1767052253343,-151.0,0.00029359,7]
[400049222,1767052253352,-151.0,0.00029359,7]
[400049223,1767052253362,-212.47584,0.00029359,7]
[400049224,1767052253371,-151.0,0.00029359,7]
[400049225,1767052253380,-212.47584,0.00029359,7]
[400049226,1767052253390,-212.47584,0.00029359,7]
[400049227,1767052253400,-212.47584,0.00029359,7]
[400049228,1767052253410,-151.0,0.00029359,7]
[400049229,1767052253420,-151.0,0.00029359,7]
[400049230,1767052253429,-716.70115333,0.0002937,27]
[400049231,1767052253439,-12494.59,0.000294,2]
[400049232,1767052253449,-253.03,0.000294,2]
[400049233,1767052253458,-253.03,0.000294,2]
[400049234,1767052253469,-1183.0,0.000294,2]
[400049235,1767052253479,-1183.0,0.00029463,2]
[400049236,1767052253499,-346.14067175,0.000295,120]
[400049237,1767052253518,-253.03,0.000295,2]
[400049238,1767052253534,-1183.0,0.00029582,2]
[400049239,1767052253550,-1050.0,0.00029589,5]
[400049240,1767052253567,-550.0,0.00029589,5]
[400049241,1767052253585,-550.0,0.00029589,5]
[400049242,1767052253602,-1500.0,0.000296,4]
[400049243,1767052253619,-1183.0,0.00029616,2]
[400049244,1767052253636,-818.63281148,0.00029671,2]
[400049245,1767052253651,-3271.25671467,0.00029671,2]
[400049246,1767052253665,-1183.0,0.00029689,2]
[400049247,1767052253683,-197.53,0.000297,2]
[400049248,1767052253698,-321.5,0.00029703,3]
[400049249,1767052253712,-1000.0,0.00029731,30]
[400049250,1767052253727,-1000.0,0.00029731,30]
[400049251,1767052253745,-579.0,0.00029731,30]
[400049252,1767052253762,-1183.0,0.00029746,2]
[400049253,1767052253780,-1183.0,0.00029852,7]
[400049254,1767052253797,-151.0,0.00029999,7]
[400049255,1767052253811,-200.0,0.00029999,10]
[400049256,1767052253824,-154.21565219,0.0003,60]
[400049257,1767052253840,-412.32537483,0.0003,10]
[400049258,1767052253859,-259.99068869,0.0003,2]
[400049259,1767052253871,-47470.52681789,0.0003,2]
[400049260,1767052253885,-386.18919635,0.0003,120]
[400049261,1767052253901,-745.82351337,0.0003,30]
[400049262,1767052253913,-385.76735927,0.0003,120]
[400049263,1767052253926,-1500.0,0.0003,45]
[400049264,1767052253940,-509.58909526,0.0003,30]
[400049265,1767052253953,-238.58177497,0.0003,120]
[400049266,1767052253967,-364.4221394,0.0003,120]
[400049267,1767052253979,-1017.0,0.0003,7]
[400049268,1767052253993,-1014.82,0.0003,30]
[400049269,1767052254005,-2000.0,0.0003,7]
[400049270,1767052254018,-1014.82,0.0003006,30]
[400049271,1767052254031,-257.66971387,0.000301,120]
[400049272,1767052254044,-1002.0,0.000301,30]
[400049273,1767052254056,-184.97932265,0.000301,2]
[400049274,1767052254069,-1500.0,0.000301,4]
[400049275,1767052254082,-1150.0,0.00030137,5]
[400049276,1767052254095,-650.0,0.00030137,5]
[400049277,1767052254107,-650.0,0.00030137,5]
[400049278,1767052254119,-1183.0,0.00030182,7]
[400049279,1767052254132,-156.97,0.000302,7]
[400049280,1767052254145,-716.70115333,0.00030215,28]
[400049281,1767052254158,-1183.0,0.00030347,2]
[400049282,1767052254170,-338.2114975,0.00030384,2]
[400049283,1767052254182,-1183.0,0.00030398,2]
[400049284,1767052254195,-160.2,0.000304,7]
[400049285,1767052254207,-1183.0,0.00030427,2]
[400049286,1767052254220,-1836.079856,0.0003054,5]
[400049287,1767052254232,-1000.0,0.0003056,5]
[400049288,1767052254244,-15277.58765547,0.00030563,2]
[400049289,1767052254257,-1183.0,0.00030566,2]
[400049290,1767052254269,-1000.0,0.0003058,5]
[400049291,1767052254281,-1202.110064,0.0003058,5]
[400049292,1767052254293,-1183.0,0.00030581,2]
[400049293,1767052254306,-1207.08,0.000306,7]
[400049294,1767052254318,-1802.09,0.000306,14]
[400049295,1767052254330,-1000.0,0.000306,6]
[400049296,1767052254343,-1000.0,0.000306,6]
[400049297,1767052254355,-428.0,0.000306,2]
[400049298,1767052254368,-1500.0,0.000306,4]
[400049299,1767052254381,-687.47074012,0.00030685,5]
[400049300,1767052254394,-750.0,0.00030685,5]
[400049301,1767052254407,-750.0,0.00030685,5]
[400049302,1767052254421,-23707.42,0.000307,6]
[400049303,1767052254434,-1364.0,0.0003079,2]
[400049304,1767052254447,-627.0,0.0003079,2]
[400049305,1767052254460,-2156.0,0.0003079,2]
[400049306,1767052254470,-321.5,0.00030802,4]
[400049307,1767052254480,-188.0,0.0003081,14]
[400049308,1767052254490,-12494.59,0.000309,2]
[400049309,1767052254628,-780.2045006,0.00030904,30]
[400049310,1767052254639,-1655.77,0.00030958,30]
[400049311,1767052254648,-305.71536966,0.0003099,2]
[400049312,1767052254658,-173.58710457,0.00031,120]
[400049313,1767052254667,-160.82945374,0.00031,120]
[400049314,1767052254677,-180.65011172,0.00031,120]
[400049315,1767052254689,-553.38184303,0.00031,120]
[400049316,1767052254699,-737.27505825,0.00031,120]
[400049317,1767052254709,-688.09260488,0.00031,120]
[400049318,1767052254719,-188.17162424,0.00031,120]
[400049319,1767052254728,-161.90452957,0.00031,120]
[400049320,1767052254738,-264.53176589,0.00031,120]
[400049321,1767052254747,-642.79198527,0.00031,120]
[400049322,1767052254756,-346.82422017,0.00031,120]
[400049323,1767052254769,-629.25078248,0.00031,120]
[400049324,1767052254779,-1041.66666667,0.00031,120]
[400049325,1767052254788,-28567.74701014,0.00031,120]
[400049326,1767052254798,-1041.66666667,0.00031,30]
[400049327,1767052254808,-1085.2885027,0.00031,120]
[400049328,1767052254818,-1017.0,0.00031,7]
[400049329,1767052254827,-716.70115333,0.0003106,30]
[400049330,1767052254837,-188.0,0.00031068,14]
[400049331,1767052254846,-18808.21278783,0.0003112,2]
[400049332,1767052254855,-197.53,0.000312,2]
[400049333,1767052254865,-161.0,0.00031205,44]
[400049334,1767052254875,-850.0,0.00031233,5]
[400049335,1767052254885,-164.29150379,0.00031233,5]
[400049336,1767052254894,-1133.59176508,0.00031233,2]
[400049337,1767052254904,-4529.83269327,0.00031233,2]
[400049338,1767052254914,-393.0,0.00031299,2]
[400049339,1767052254923,-500.0,0.00031356,14]
[400049340,1767052254932,-314.28171,0.000314,120]
[400049341,1767052254942,-1984.534635,0.000315,11]
[400049342,1767052254951,-1655.77,0.00031506,31]
[400049343,1767052254960,-482.50644681,0.00031506,120]
[400049344,1767052254970,-499.0527231,0.00031507,5]
[400049345,1767052254980,-2000.0,0.00031667,7]
[400049346,1767052254989,-950.0,0.00031781,5]
[400049347,1767052254998,-173.58710457,0.000319,120]
[400049348,1767052255008,-180.65011172,0.000319,120]
[400049349,1767052255018,-553.38184303,0.000319,120]
[400049350,1767052255027,-737.27505825,0.000319,120]
[400049351,1767052255036,-688.09260488,0.000319,120]
[400049352,1767052255045,-188.17162424,0.000319,120]
[400049353,1767052255054,-161.90452957,0.000319,120]
[400049354,1767052255064,-264.53176589,0.000319,120]
[400049355,1767052255073,-642.79198527,0.000319,120]
[400049356,1767052255082,-346.82422017,0.000319,120]
[400049357,1767052255092,-629.25078248,0.000319,120]
[400049358,1767052255102,-1041.66666667,0.000319,120]
[400049359,1767052255112,-43918.94583551,0.000319,2]
[400049360,1767052255121,-1207.08,0.000319,7]
[400049361,1767052255130,-151.0,0.000319,31]
[400049362,1767052255139,-151.0,0.000319,31]
[400049363,1767052255149,-321.5,0.00031901,4]
[400049364,1767052255158,-716.70115333,0.00031905,30]
[400049365,1767052255167,-200.5099534,0.00032,2]
[400049366,1767052255176,-166.315879,0.00032,31]
[400049367,1767052255185,-151.0,0.00032,31]
[400049368,1767052255195,-151.0,0.00032,31]
[400049369,1767052255204,-500.0,0.00032,5]
[400049370,1767052255213,-583.69164334,0.00032,5]
[400049371,1767052255223,-500.0,0.00032,5]
[400049372,1767052255232,-500.0,0.00032,5]
[400049373,1767052255241,-500.0,0.00032,30]
[400049374,1767052255250,-500.0,0.00032,5]
[400049375,1767052255259,-500.0,0.00032,30]
[400049376,1767052255269,-500.0,0.00032,5]
[400049377,1767052255278,-500.0,0.00032,5]
[400049378,1767052255287,-500.0,0.00032,5]
[400049379,1767052255296,-500.0,0.00032,5]
[400049380,1767052255306,-515.32839191,0.00032,30]
[400049381,1767052255315,-500.0,0.00032,5]
[400049382,1767052255324,-500.0,0.00032,30]
[400049383,1767052255333,-500.0,0.00032,5]
[400049384,1767052255343,-500.0,0.00032,5]
[400049385,1767052255352,-500.0,0.00032,5]
[400049386,1767052255361,-500.0,0.00032,30]
[400049387,1767052255371,-500.0,0.00032,5]
[400049388,1767052255380,-500.0,0.00032,30]
[400049389,1767052255389,-500.0,0.00032,5]
[400049390,1767052255399,-1000.0,0.00032,11]
[400049391,1767052255408,-1017.0,0.00032,7]
[400049392,1767052255417,-151.0,0.0003201,31]
[400049393,1767052255426,-151.0,0.0003201,7]
[400049394,1767052255436,-151.0,0.0003201,31]
[400049395,1767052255446,-4057.68057094,0.0003201,2]
[400049396,1767052255456,-1655.77,0.00032054,32]
[400049397,1767052255466,-1802.09,0.000321,14]
[400049398,1767052255475,-151.0,0.000321,31]
[400049399,1767052255484,-151.0,0.000321,31]
[400049400,1767052255494,-151.0,0.000321,31]
[400049401,1767052255503,-151.0,0.000321,31]
[400049402,1767052255513,-151.0,0.000321,31]
[400049403,1767052255523,-151.0,0.000321,31]
[400049404,1767052255533,-151.0,0.000321,31]
[400049405,1767052255542,-500.0,0.0003216,2]
[400049406,1767052255551,-15277.58765547,0.00032294,2]
[400049407,1767052255561,-1050.0,0.00032329,5]
[400049408,1767052255571,-300.0,0.00032384,2]
[400049409,1767052255580,-300.0,0.00032384,2]
[400049410,1767052255590,-300.0,0.00032384,2]
[400049411,1767052255599,-300.0,0.00032384,2]
[400049412,1767052255609,-300.0,0.00032384,2]
[400049413,1767052255619,-300.0,0.00032384,2]